fUSD/lending_fUSD_20251206
["ID","MTS","AMOUNT","RATE_DAILY","PERIOD"]
[396499861,1765011041945,-207.02860173,0.00015672,2]
[396499862,1765011041955,-153.04558204,0.00015916,2]
[396499863,1765011041964,-13851.02829593,0.00016,4]
[396499864,1765011042058,-851.26087761,0.00016,4]
[396499865,1765011042071,-404.42867133,0.00016,4]
[396499866,1765011042082,-446.74716431,0.00016,4]
[396499867,1765011042097,-375.32230847,0.00016,4]
[396499868,1765011042108,-3030.275,0.00016,4]
[396499869,1765011042150,-23989.30025605,0.00016,4]
[396499871,1765011042213,-4138.7968325,0.00016,4]
[396499872,1765011042905,-156.3529007,0.00015535,2]
[396499873,1765011042915,-5366.39459187,0.00016,4]
[396499874,1765011043078,-183.10481092,0.00015535,2]
[396499875,1765011043089,-8196.89518908,0.00016,4]
[396499884,1765011045896,-25343.36259609,0.00016,4]
[396499885,1765011045908,-2792.89708656,0.00016,4]
[396499886,1765011045983,-400.0,0.00016,4]
[396499900,1765011051894,5545.82969361,0.00015335,2]
[396499901,1765011051922,10000.01,0.00015335,2]
[396499902,1765011051950,10000.01,0.00015335,2]
[396499903,1765011051978,10000.01,0.00015335,2]
[396499904,1765011052004,10000.01,0.00015335,2]
[396499905,1765011052031,10000.01,0.00015335,2]
[396499906,1765011052057,10000.01,0.00015335,2]
[396499907,1765011052085,10000.01,0.00015335,2]
[396499908,1765011052111,10000.01,0.00015335,2]
[396499909,1765011052139,10000.01,0.00015335,2]
[396499914,1765011061334,-300.0,0.00015334,2]
[396499915,1765011064376,-300.0,0.00015334,2]
[396499916,1765011064984,-4251.05826017,0.00015335,2]
[396499917,1765011065027,-10000.01,0.00015335,2]
[396499918,1765011065048,-10000.01,0.00015335,2]
[396499919,1765011065191,-10000.01,0.00015335,2]
[396499920,1765011065252,-10000.01,0.00015335,2]
[396499921,1765011065402,-10000.01,0.00015335,2]
[396499922,1765011065540,-10000.01,0.00015335,2]
[396499923,1765011089442,7884.49257556,0.00015235,2]
[396499926,1765011108382,2115.51742444,0.00015235,2]
[396499927,1765011108406,10000.01,0.00015235,2]
[396499928,1765011108429,3172.3844337,0.00015235,2]
[396499929,1765011121557,300.0,0.00015334,2]
[396499930,1765011153128,548.09826294,0.00015334,2]
[396499931,1765011153158,179.78600561,0.00015334,2]
[396499933,1765011159289,200.0,0.0001495,2]
[396499934,1765011159913,323.10698091,0.0001495,2]
[396499935,1765011160608,377.580196,0.00015235,2]
[396499936,1765011161075,500.0,0.00015334,2]
[396499937,1765011161124,204.82106722,0.00015334,2]
[396499938,1765011161172,500.0,0.00015334,2]
[396499939,1765011161225,500.0,0.00015334,2]
[396499940,1765011161298,500.0,0.00015334,2]
[396499941,1765011161359,500.0,0.00015334,2]
[396499942,1765011161504,500.0,0.00015334,2]
[396499947,1765011185576,230.24,0.00015049,2]
[396499948,1765011196770,152.87,0.00015036,2]
[396500097,1765011301225,300.0,0.00015334,2]
[396500098,1765011301542,1011.12305362,0.00015334,2]
[396500099,1765011301572,188.87694638,0.00015334,2]
[396500100,1765011301632,300.0,0.00015334,2]
[396500101,1765011306639,-1000.0,0.00042238,30]
[396500102,1765011306663,-1000.0,0.00042238,30]
[396500103,1765011306686,-1000.0,0.00042238,30]
[396500104,1765011306710,-1000.0,0.00042238,30]
[396500105,1765011306734,-1000.0,0.00042238,30]
[396500106,1765011306759,-1000.0,0.00042238,30]
[396500107,1765011306784,-1000.0,0.00042238,30]
[396500108,1765011306808,-1000.0,0.00042238,30]
[396500109,1765011306832,-1000.0,0.00042238,30]
[396500110,1765011306855,-482.82889381,0.00042238,30]
[396500111,1765011306879,-1000.0,0.00042238,30]
[396500112,1765011306904,-1000.0,0.00042238,30]
[396500113,1765011306930,-1000.0,0.00042238,30]
[396500114,1765011306959,-1000.0,0.00042238,30]
[396500115,1765011306997,-1000.0,0.00042238,30]
[396500116,1765011307038,-1007.59900422,0.00042238,30]
[396500117,1765011307077,-500.0,0.00042238,120]
[396500118,1765011307111,-500.0,0.00042238,120]
[396500119,1765011307140,-500.0,0.00042238,120]
[396500120,1765011307174,-500.0,0.00042238,120]
[396500121,1765011307198,-500.0,0.00042238,120]
[396500122,1765011307223,-500.0,0.00042238,120]
[396500123,1765011307250,-226.59458871,0.00042238,120]
[396500124,1765011307275,-1000.0,0.00042238,30]
[396500125,1765011307298,-1000.0,0.00042238,60]
[396500126,1765011307321,-1028.19909846,0.00042238,30]
[396500127,1765011307344,-1000.0,0.00042238,60]
[396500128,1765011307368,-1243.8832494,0.00042238,30]
[396500129,1765011307397,-1000.0,0.00042238,60]
[396500130,1765011307444,-1000.0,0.00042238,60]
[396500131,1765011307480,-715.29,0.00042238,120]
[396500132,1765011307510,-715.29,0.00042238,120]
[396500133,1765011307543,-715.29,0.00042238,120]
[396500134,1765011307594,-715.29,0.00042238,120]
[396500135,1765011307626,-715.29,0.00042238,120]
[396500136,1765011307670,-715.29,0.00042238,120]
[396500137,1765011307702,-715.29,0.00042238,120]
[396500138,1765011307733,-715.29,0.00042238,120]
[396500139,1765011307779,-715.29,0.00042238,120]
[396500140,1765011307807,-715.29,0.00042238,120]
[396500141,1765011307832,-715.29,0.00042238,120]
[396500142,1765011307887,-715.29,0.00042238,120]
[396500143,1765011307916,-715.29,0.00042238,120]
[396500144,1765011307965,-715.29,0.00042238,120]
[396500145,1765011308003,-715.29,0.00042238,120]
[396500146,1765011308041,-715.29,0.00042238,120]
[396500147,1765011308069,-715.29,0.00042238,120]
[396500148,1765011308095,-715.29,0.00042238,120]
[396500149,1765011308122,-715.29,0.00042238,120]
[396500150,1765011308148,-715.29,0.00042238,120]
[396500151,1765011308175,-715.29,0.00042238,120]
[396500152,1765011308203,-715.29,0.00042238,120]
[396500153,1765011308231,-715.29,0.00042238,120]
[396500154,1765011308257,-715.51377252,0.00042238,120]
[396500155,1765011308282,-1000.0,0.00042238,60]
[396500156,1765011308308,-1000.0,0.00042238,30]
[396500157,1765011308334,-1000.0,0.00042238,30]
[396500158,1765011308359,-1000.0,0.00042238,60]
[396500159,1765011308384,-1000.0,0.00042238,60]
[396500160,1765011308410,-1000.0,0.00042238,30]
[396500161,1765011308434,-1000.0,0.00042238,120]
[396500162,1765011308460,-659.12015488,0.00042238,30]
[396500163,1765011308485,-1000.0,0.00042238,30]
[396500164,1765011308510,-1000.0,0.00042238,60]
[396500165,1765011308534,-1000.0,0.00042238,30]
[396500166,1765011308558,-1000.0,0.00042238,30]
[396500167,1765011308584,-1000.0,0.00042238,60]
[396500168,1765011308609,-1000.0,0.00042238,30]
[396500169,1765011308634,-1991.71175932,0.00042238,60]
[396500170,1765011308660,-1000.0,0.00042238,60]
[396500171,1765011308686,-1000.0,0.00042238,60]
[396500172,1765011308710,-1000.0,0.00042238,30]
[396500173,1765011308734,-1003.96670942,0.00042238,30]
[396500174,1765011308759,-500.0,0.00042238,120]
[396500175,1765011308784,-500.0,0.00042238,120]
[396500176,1765011308810,-500.0,0.00042238,120]
[396500177,1765011308834,-500.0,0.00042238,120]
[396500178,1765011308860,-500.0,0.00042238,120]
[396500179,1765011308884,-500.0,0.00042238,120]
[396500180,1765011308908,-500.0,0.00042238,120]
[396500181,1765011308932,-500.0,0.00042238,120]
[396500182,1765011308958,-500.0,0.00042238,120]
[396500183,1765011308982,-500.0,0.00042238,120]
[396500184,1765011309007,-500.0,0.00042238,120]
[396500185,1765011309032,-553.28543246,0.00042238,120]
[396500186,1765011309058,-1000.0,0.00042238,30]
[396500187,1765011309084,-1000.0,0.00042238,30]
[396500188,1765011309109,-1000.0,0.00042238,30]
[396500189,1765011309134,-1022.94655395,0.00042238,30]
[396500190,1765011309159,-869.08628831,0.00042238,30]
[396500191,1765011309184,-275.04815,0.00042238,60]
[396500192,1765011309403,-275.04815,0.00042238,60]
[396500193,1765011309442,-275.04815,0.00042238,60]
[396500194,1765011309467,-275.04815,0.00042238,60]
[396500195,1765011309491,-275.04815,0.00042238,60]
[396500196,1765011309515,-1000.0,0.00042238,30]
[396500197,1765011309538,-1000.0,0.00042238,30]
[396500198,1765011309562,-1000.0,0.00042238,30]
[396500199,1765011309587,-1000.0,0.00042238,30]
[396500200,1765011309611,-1000.0,0.00042238,30]
[396500201,1765011309637,-1000.0,0.00042238,60]
[396500203,1765011309663,-1000.0,0.00042238,60]
[396500204,1765011309689,-13802.52,0.00042238,30]
[396500205,1765011309713,-1059.67171736,0.00042238,90]
[396500206,1765011309738,-150.01,0.00042238,30]
[396500207,1765011309762,-219.45511715,0.00042238,30]
[396500208,1765011309786,-538.55781211,0.00042238,30]
[396500209,1765011309810,-402.67640451,0.00042238,30]
[396500210,1765011309833,-653.20841086,0.00042238,120]
[396500211,1765011309857,-923.6160591,0.00042238,30]
[396500212,1765011309880,-150.02,0.00042238,30]
[396500213,1765011309907,-1178.89285978,0.00042238,30]
[396500214,1765011309931,-354.76835659,0.00042238,120]
[396500215,1765011309955,-730.39812836,0.00042238,120]
[396500216,1765011309979,-1055.19662063,0.00042238,120]
[396500217,1765011310005,-779.23522659,0.00042238,30]
[396500218,1765011310034,-288.34185967,0.00042238,120]
[396500219,1765011310058,-270.18055353,0.00042238,120]
[396500220,1765011310082,-593.85437508,0.00042238,120]
[396500221,1765011310108,-1691.56399717,0.00042238,30]
[396500222,1765011310134,-311.39139363,0.00042238,120]
[396500223,1765011310158,-155.54849494,0.00042238,120]
[396500224,1765011310183,-1400.999998,0.00042238,120]
[396500225,1765011310207,-827.06551598,0.00042238,30]
[396500226,1765011310231,-492.04192389,0.00042238,120]
[396500227,1765011310255,-539.20314097,0.00042238,120]
[396500228,1765011310294,-376.10421413,0.00042238,30]
[396500229,1765011310320,-1927.67566576,0.00042238,120]
[396500230,1765011310345,-226.63022701,0.00042238,120]
[396500231,1765011310371,-211.21685867,0.00042238,120]
[396500232,1765011310397,-904.47157763,0.00042238,30]
[396500233,1765011310422,-302.33243746,0.00042238,30]
[396500234,1765011310448,-558.70478347,0.00042238,60]
[396500235,1765011310476,-1533.58086701,0.00042238,120]
[396500236,1765011310501,-913.31119471,0.00042238,30]
[396500237,1765011310526,-1324.58668906,0.00042238,30]
[396500238,1765011310551,-282.10092342,0.00042238,90]
[396500239,1765011310577,-1003.09550458,0.00042238,120]
[396500240,1765011310604,-1735.07925937,0.00042238,120]
[396500241,1765011310631,-558.75775207,0.00042238,120]
[396500242,1765011310657,-983.76553366,0.00042238,30]
[396500243,1765011310685,-522.19491351,0.00042238,120]
[396500244,1765011310713,-1589.25330932,0.00042238,60]
[396500245,1765011310740,-434.12667372,0.00042238,120]
[396500246,1765011310768,-645.7305259,0.00042238,120]
[396500247,1765011310797,-220.16820511,0.00042238,30]
[396500248,1765011310823,-1016.60925271,0.00042238,30]
[396500249,1765011310849,-860.11458658,0.00042238,120]
[396500250,1765011310875,-850.84361501,0.00042238,120]
[396500251,1765011310901,-907.61751048,0.00042238,120]
[396500252,1765011310927,-514.98193986,0.00042238,120]
[396500253,1765011310953,-2318.43504097,0.00042238,30]
[396500254,1765011310979,-326.68676982,0.00042238,120]
[396500255,1765011311005,-371.42822341,0.00042238,30]
[396500256,1765011311029,-1164.33321589,0.00042238,120]
[396500257,1765011311054,-199.27112332,0.00042238,120]
[396500258,1765011311079,-710.06381022,0.00042238,30]
[396500259,1765011311107,-379.36776065,0.00042238,120]
[396500260,1765011311133,-472.31385519,0.00042238,120]
[396500261,1765011311159,-1070.10183873,0.00042238,30]
[396500262,1765011311185,-583.36014273,0.00042238,120]
[396500263,1765011311210,-489.59290285,0.00042238,120]
[396500264,1765011311236,-586.55537344,0.00042238,120]
[396500265,1765011311263,-575.55611369,0.00042238,120]
[396500266,1765011311290,-561.11869681,0.00042238,120]
[396500267,1765011311318,-187.00020183,0.00042238,120]
[396500268,1765011311348,-1023.31332481,0.00042238,120]
[396500269,1765011311374,-1107.61424852,0.00042238,120]
[396500270,1765011311400,-614.03798774,0.00042238,30]
[396500271,1765011311428,-997.0,0.00042238,30]
[396500272,1765011311455,-492.48335058,0.00042238,120]
[396500273,1765011311480,-528.6293892,0.00042238,31]
[396500274,1765011311507,-483.18173764,0.00042238,120]
[396500275,1765011311533,-565.97540702,0.00042238,120]
[396500276,1765011311562,-934.46285564,0.00042238,30]
[396500277,1765011311589,-1055.64383564,0.00042238,30]
[396500278,1765011311615,-556.43893872,0.00042238,120]
[396500279,1765011311641,-1193.41270331,0.00042238,120]
[396500280,1765011311668,-1960.67880221,0.00042238,120]
[396500281,1765011311694,-1700.9613305,0.00042238,120]
[396500282,1765011311719,-789.37845532,0.00042238,60]
[396500283,1765011311744,-266.30444593,0.00042238,120]
[396500284,1765011311768,-215.72397503,0.00042238,30]
[396500285,1765011311796,-612.94230068,0.00042238,120]
[396500286,1765011311821,-1376.79623699,0.00042238,120]
[396500287,1765011311846,-1030.1766344,0.00042238,80]
[396500288,1765011311871,-282.54877242,0.00042238,30]
[396500289,1765011311896,-1140.3735032,0.00042238,120]
[396500290,1765011311922,-444.19382137,0.00042238,30]
[396500291,1765011311947,-1377.851216,0.00042238,120]
[396500292,1765011311972,-215.61998892,0.00042238,31]
[396500293,1765011311997,-186.29182764,0.00042238,120]
[396500294,1765011312028,-775.13042064,0.00042238,120]
[396500295,1765011312056,-2555.29767973,0.00042238,120]
[396500296,1765011312082,-1160.37053267,0.00042238,120]
[396500297,1765011312111,-1322.62229883,0.00042238,120]
[396500298,1765011312391,-1391.19231948,0.00042238,120]
[396500299,1765011312418,-510.61008616,0.00042238,30]
[396500300,1765011312444,-1181.97715138,0.00042238,120]
[396500301,1765011312468,-756.0,0.00042238,120]
[396500302,1765011312494,-431.2803673,0.00042238,120]
[396500303,1765011312520,-512.89408996,0.00042238,120]
[396500304,1765011312547,-1195.05354099,0.00042238,30]
[396500305,1765011312573,-647.5675817,0.00042238,120]
[396500306,1765011312598,-183.20268566,0.00042238,120]
[396500307,1765011312622,-490.69022156,0.00042238,120]
[396500308,1765011312646,-157.16743918,0.00042238,30]
[396500309,1765011312670,-423.38140981,0.00042238,30]
[396500310,1765011312695,-1096.44136232,0.00042238,30]
[396500311,1765011312723,-1719.10552993,0.00042238,120]
[396500312,1765011312756,-1667.93365134,0.00042238,120]
[396500313,1765011312781,-196.03557405,0.00042238,120]
[396500314,1765011312804,-830.64225407,0.00042238,120]
[396500315,1765011312840,-2039.01895238,0.00042238,120]
[396500316,1765011312892,-694.83132751,0.00042238,30]
[396500317,1765011312931,-499.56353123,0.00042238,60]
[396500318,1765011312964,-840.63237607,0.00042238,30]
[396500319,1765011312990,-946.9487338,0.00042238,30]
[396500320,1765011313026,-1182.08683859,0.00042238,120]
[396500321,1765011313050,-1242.71673945,0.00042238,30]
[396500322,1765011313078,-418.22196191,0.00042238,30]
[396500323,1765011313102,-641.46500844,0.00042238,120]
[396500324,1765011313126,-531.09306028,0.00042238,120]
[396500325,1765011313150,-703.7296925,0.00042238,30]
[396500326,1765011313173,-862.39424091,0.00042238,45]
[396500327,1765011313197,-776.40056568,0.00042238,30]
[396500328,1765011313221,-500.0,0.00042238,120]
[396500329,1765011313247,-185.94839266,0.00042238,120]
[396500330,1765011313270,-658.0,0.00042238,120]
[396500331,1765011313293,-151.43081014,0.00042238,30]
[396500332,1765011313319,-400.48658892,0.00042238,30]
[396500333,1765011313342,-150.01,0.00042238,30]
[396500334,1765011313367,-1032.65717,0.00042238,60]
[396500335,1765011313391,-1032.65717,0.00042238,60]
[396500336,1765011313416,-1032.65717,0.00042238,60]
[396500337,1765011313440,-1032.65717,0.00042238,60]
[396500338,1765011313465,-1032.65717,0.00042238,60]
[396500339,1765011313498,-1305.6387237,0.00042238,30]
[396500340,1765011313536,-8952.0,0.00042238,30]
[396500341,1765011313574,-9996.96558345,0.00042238,31]
[396500342,1765011313609,-1538.0,0.00042238,30]
[396500343,1765011313647,-1000.0,0.00042238,30]
[396500344,1765011313686,-3898.51,0.00042238,120]
[396500345,1765011313720,-2227.57633502,0.00042238,30]
[396500346,1765011313746,-2156.13858959,0.00042238,120]
[396500347,1765011313773,-2181.35926443,0.00042238,120]
[396500348,1765011313798,-6070.46590256,0.00042238,30]
[396500349,1765011313823,-3858.00549615,0.00042238,30]
[396500350,1765011313855,-2822.38568394,0.00042238,30]
[396500351,1765011313880,-3017.18111027,0.00042238,30]
[396500352,1765011313905,-2127.60463255,0.00042238,120]
[396500353,1765011313930,-3278.142707,0.00042238,120]
[396500354,1765011313954,-82746.999999,0.00042238,30]
[396500355,1765011313979,-253.0,0.00042238,120]
[396500356,1765011314003,-20380.21864227,0.00042238,30]
[396500357,1765011314030,-4065.90040872,0.00042238,120]
[396500358,1765011314059,-302647.35289298,0.00042238,30]
[396500359,1765011314085,-2000.0,0.00042238,120]
[396500360,1765011314111,-289368.85053163,0.00042238,30]
[396500361,1765011314135,-136779.84381526,0.00042238,30]
[396500362,1765011314160,-10000.0,0.00042238,120]
[396500363,1765011314186,-10000.0,0.00042238,120]
[396500364,1765011314210,-10000.0,0.00042238,90]
[396500365,1765011314235,-10000.0,0.00042238,90]
[396500366,1765011314258,-10000.0,0.00042238,90]
[396500367,1765011314284,-2057.0,0.00042238,120]
[396500368,1765011314308,-927.0,0.00042238,120]
[396500369,1765011314332,-385211.65686883,0.00042238,30]
[396500370,1765011314355,-1000.0,0.00042238,120]
[396500371,1765011314380,-150.0,0.00042238,30]
[396500372,1765011314404,-4152.0,0.00042238,50]
[396500373,1765011314429,-10000.0,0.00042238,60]
[396500374,1765011314453,-150.01,0.00042238,30]
[396500375,1765011314477,-197378.39054536,0.00042238,30]
[396500376,1765011314502,-500.0,0.00042238,120]
[396500377,1765011314527,-500.0,0.00042238,120]
[396500378,1765011314552,-500.0,0.00042238,120]
[396500379,1765011314576,-500.0,0.00042238,120]
[396500380,1765011314601,-500.0,0.00042238,120]
[396500381,1765011314627,-500.0,0.00042238,120]
[396500382,1765011314659,-500.0,0.00042238,120]
[396500383,1765011314684,-500.0,0.00042238,120]
[396500384,1765011314707,-500.0,0.00042238,120]
[396500385,1765011314732,-500.0,0.00042238,120]
[396500386,1765011314757,-500.0,0.00042238,120]
[396500387,1765011314781,-202.10086217,0.00042238,120]
[396500388,1765011314805,-10881.63763379,0.00042238,120]
[396500389,1765011314828,-5100.0,0.00042238,36]
[396500390,1765011314853,-10000.0,0.00042238,60]
[396500392,1765011314877,-8423.09845999,0.00042238,120]
[396500393,1765011314907,-50000.0,0.00042238,32]
[396500394,1765011314935,-50000.0,0.00042238,33]
[396500395,1765011314963,-50000.0,0.00042238,34]
[396500396,1765011314991,-50000.0,0.00042238,35]
[396500397,1765011315019,-50000.0,0.00042238,36]
[396500398,1765011315047,-50000.0,0.00042238,37]
[396500399,1765011315074,-50000.0,0.00042238,38]
[396500400,1765011315103,-50000.0,0.00042238,39]
[396500401,1765011315129,-10000.0,0.00042238,120]
[396500402,1765011315154,-5000.0,0.00042238,30]
[396500403,1765011315178,-461.45925612,0.00042238,120]
[396500404,1765011315383,-169.26999026,0.00042238,120]
[396500405,1765011315409,-1128.02890593,0.00042238,120]
[396500406,1765011315435,-220.50060979,0.00042238,120]
[396500407,1765011315463,-500.0,0.00042238,120]
[396500408,1765011315491,-500.0,0.00042238,120]
[396500409,1765011315517,-187.9642428,0.00042238,120]
[396500410,1765011315542,-178.83359564,0.00042238,60]
[396500411,1765011315567,-11610.08,0.00042238,30]
[396500412,1765011315592,-865.67,0.00042238,120]
[396500413,1765011315617,-865.67,0.00042238,120]
[396500414,1765011315643,-865.67,0.00042238,120]
[396500415,1765011315668,-865.67,0.00042238,120]
[396500416,1765011315693,-865.67,0.00042238,120]
[396500417,1765011315718,-865.67,0.00042238,120]
[396500418,1765011315743,-865.67,0.00042238,120]
[396500419,1765011315768,-865.67,0.00042238,120]
[396500420,1765011315793,-865.67,0.00042238,120]
[396500421,1765011315817,-865.67,0.00042238,120]
[396500422,1765011315841,-865.67,0.00042238,120]
[396500423,1765011315867,-865.67,0.00042238,120]
[396500424,1765011315892,-865.67,0.00042238,120]
[396500425,1765011315916,-865.67,0.00042238,120]
[396500426,1765011315940,-865.67,0.00042238,120]
[396500427,1765011315965,-865.67,0.00042238,120]
[396500428,1765011315990,-865.67,0.00042238,120]
[396500429,1765011316016,-865.67,0.00042238,120]
[396500430,1765011316042,-865.67,0.00042238,120]
[396500431,1765011316067,-865.67,0.00042238,120]
[396500432,1765011316094,-865.67,0.00042238,120]
[396500433,1765011316118,-865.67,0.00042238,120]
[396500434,1765011316143,-865.67,0.00042238,120]
[396500435,1765011316168,-865.75229874,0.00042238,120]
[396500436,1765011316193,-258.63704378,0.00042238,30]
[396500437,1765011316217,-1067.30798041,0.00042238,30]
[396500438,1765011316241,-159.08196289,0.00042238,60]
[396500439,1765011316266,-158.10630898,0.00042238,30]
[396500440,1765011316290,-237.02644276,0.00042238,120]
[396500441,1765011316315,-685.82514182,0.00042238,49]
[396500442,1765011316339,-206.20433069,0.00042238,120]
[396500443,1765011316364,-2388.0,0.00042238,120]
[396500444,1765011316388,-2871.05,0.00042238,120]
[396500445,1765011316413,-2956.28789955,0.00042238,30]
[396500446,1765011316437,-261.86641769,0.00042238,120]
[396500447,1765011316465,-26462.66,0.00042238,90]
[396500448,1765011316493,-2404.23754827,0.00042238,120]
[396500449,1765011316520,-150.02,0.00042238,120]
[396500450,1765011316546,-150.02,0.00042238,120]
[396500451,1765011316572,-150.02,0.00042238,120]
[396500452,1765011316597,-150.02,0.00042238,120]
[396500453,1765011316623,-150.02,0.00042238,120]
[396500454,1765011316648,-150.02,0.00042238,120]
[396500455,1765011316675,-150.02,0.00042238,120]
[396500456,1765011316702,-150.02,0.00042238,120]
[396500457,1765011316729,-150.02,0.00042238,120]
[396500458,1765011316755,-150.02,0.00042238,120]
[396500459,1765011316779,-150.02,0.00042238,120]
[396500460,1765011316806,-150.02,0.00042238,120]
[396500461,1765011316831,-150.02,0.00042238,120]
[396500462,1765011316857,-150.02,0.00042238,120]
[396500463,1765011316882,-150.02,0.00042238,120]
[396500464,1765011316906,-150.02,0.00042238,120]
[396500465,1765011316931,-150.02,0.00042238,120]
[396500466,1765011316956,-150.02,0.00042238,120]
[396500467,1765011316982,-150.02,0.00042238,120]
[396500468,1765011317011,-150.02,0.00042238,120]
[396500469,1765011317037,-150.02,0.00042238,120]
[396500470,1765011317063,-150.02,0.00042238,120]
[396500471,1765011317090,-150.02,0.00042238,120]
[396500472,1765011317118,-150.02,0.00042238,120]
[396500473,1765011317143,-150.02,0.00042238,120]
[396500474,1765011317169,-150.02,0.00042238,120]
[396500475,1765011317194,-150.02,0.00042238,120]
[396500476,1765011317220,-150.02,0.00042238,120]
[396500477,1765011317246,-150.02,0.00042238,120]
[396500478,1765011317271,-150.02,0.00042238,120]
[396500479,1765011317296,-150.02,0.00042238,120]
[396500480,1765011317320,-150.02,0.00042238,120]
[396500481,1765011317345,-150.02,0.00042238,120]
[396500482,1765011317370,-150.02,0.00042238,120]
[396500483,1765011317394,-150.02,0.00042238,120]
[396500484,1765011317419,-150.02,0.00042238,120]
[396500485,1765011317444,-150.02,0.00042238,120]
[396500486,1765011317470,-150.02,0.00042238,120]
[396500487,1765011317495,-150.02,0.00042238,120]
[396500488,1765011317520,-150.02,0.00042238,120]
[396500489,1765011317546,-150.02,0.00042238,120]
[396500490,1765011317570,-150.02,0.00042238,120]
[396500491,1765011317596,-150.02,0.00042238,120]
[396500492,1765011317622,-150.02,0.00042238,120]
[396500493,1765011317649,-150.02,0.00042238,120]
[396500494,1765011317675,-150.02,0.00042238,120]
[396500495,1765011317699,-150.02,0.00042238,120]
[396500496,1765011317724,-150.02,0.00042238,120]
[396500497,1765011317749,-150.02,0.00042238,120]
[396500498,1765011317774,-150.02,0.00042238,120]
[396500499,1765011317799,-150.02,0.00042238,120]
[396500500,1765011317823,-150.02,0.00042238,120]
[396500501,1765011317850,-150.02,0.00042238,120]
[396500502,1765011317876,-150.02,0.00042238,120]
[396500503,1765011317901,-150.02,0.00042238,120]
[396500504,1765011317927,-150.02,0.00042238,120]
[396500505,1765011317952,-150.02,0.00042238,120]
[396500506,1765011317978,-150.02,0.00042238,120]
[396500507,1765011318004,-150.02,0.00042238,120]
[396500508,1765011318216,-150.02,0.00042238,120]
[396500509,1765011318247,-150.02,0.00042238,120]
[396500510,1765011318272,-150.02,0.00042238,120]
[396500511,1765011318299,-150.02,0.00042238,120]
[396500512,1765011318323,-150.02,0.00042238,120]
[396500513,1765011318348,-150.02,0.00042238,120]
[396500514,1765011318373,-150.02,0.00042238,120]
[396500515,1765011318398,-150.02,0.00042238,120]
[396500516,1765011318422,-150.02,0.00042238,120]
[396500517,1765011318448,-1000.0,0.00042238,30]
[396500518,1765011318474,-150.02,0.00042238,120]
[396500519,1765011318498,-150.02,0.00042238,120]
[396500520,1765011318522,-150.02,0.00042238,120]
[396500521,1765011318546,-150.02,0.00042238,120]
[396500522,1765011318570,-150.02,0.00042238,120]
[396500523,1765011318594,-150.02,0.00042238,120]
[396500524,1765011318619,-150.02,0.00042238,120]
[396500525,1765011318646,-150.02,0.00042238,120]
[396500526,1765011318670,-150.02,0.00042238,120]
[396500527,1765011318695,-150.02,0.00042238,120]
[396500528,1765011318720,-150.02,0.00042238,120]
[396500529,1765011318745,-150.02,0.00042238,120]
[396500530,1765011318769,-150.02,0.00042238,120]
[396500531,1765011318793,-150.02,0.00042238,120]
[396500532,1765011318817,-150.02,0.00042238,120]
[396500533,1765011318842,-150.02,0.00042238,120]
[396500534,1765011318866,-150.02,0.00042238,120]
[396500535,1765011318891,-150.02,0.00042238,120]
[396500536,1765011318915,-150.02,0.00042238,120]
[396500537,1765011318939,-150.02,0.00042238,120]
[396500538,1765011318964,-150.02,0.00042238,120]
[396500539,1765011318988,-150.02,0.00042238,120]
[396500540,1765011319011,-150.02,0.00042238,120]
[396500541,1765011319035,-150.02,0.00042238,120]
[396500542,1765011319059,-150.02,0.00042238,120]
[396500543,1765011319083,-150.02,0.00042238,120]